Cogmind - Beta 11.2 @@@ ROGUE MODE // 2023.02.11 @ 21:14:51 // Winter2022/Polymind Player: ArabianSandBoa Result: Destroyed self with Mini Grenade Launcher Performance ------------- Evolutions (0) 0 Regions Visited (2) 400 Robots Destroyed (21) 105 Value Destroyed (303) 303 Prototype IDs (0) 0 Alien Tech Used (0) 0 Bonus (1880) 1880 TOTAL SCORE: 1908 Bonus ------- Polymind Skill 2142 Friendly Fire -262 Cogmind --------- Core Integrity 0/250 Matter 140/150 Energy 90/90 System Corruption 0% Temperature Cool (0) Movement Hovering (76) Location -10/Mines Parts ------- > --- POWER (1) -------- Light Deuterium Engine > --- PROPULSION (2) --- Combat Airjet Combat Airjet > --- UTILITY (3) ------ Launcher Guidance Computer Improved Light Armor Plating > --- WEAPON (1) ------- Mini Grenade Launcher > --- INVENTORY (1) ---- EM Pulse Gun Peak State ------------ > --- POWER ------------ Light Deuterium Engine > --- PROPULSION ------- Combat Airjet Combat Airjet > --- UTILITY ---------- Launcher Guidance Computer Improved Light Armor Plating Shock Absorption System > --- WEAPON ----------- Mini Grenade Launcher > --- INVENTORY -------- (None) [Rating: 26] Favorites ----------- Power Light Ion Engine Engine Light Ion Engine Propulsion Combat Airjet Leg Aluminum Leg Wheel Wheel Hover Unit Combat Airjet Flight Unit Flight Unit Utility Launcher Guidance Computer Device Tractor Beam Storage Medium Matter Pod Processor Launcher Guidance Computer Protection Improved Light Armor Plating Weapon Light Assault Rifle Energy Gun Small Laser Ballistic Gun Light Assault Rifle Launcher Mini Grenade Launcher Build | -11 -10 -10 ------- Run | Scr Mat Min Slots Evolved . | . . . Power . | . . . Propulsion . | . . . Utility . | . . . Weapon . | . . . Parts Attached . | . . . Power . | . . . Engine . | . . . Core . | . . . Reactor . | . . . Propulsion . | . . . Treads . | . . . Leg . | . . . Wheel . | . . . Hover . | . . . Flight . | . . . Utility . | . . . Device . | . . . Storage . | . . . Processor . | . . . Hackware . | . . . Protection . | . . . Artifact . | . . . Weapon . | . . . Energy Gun . | . . . Energy Cannon . | . . . Ballistic Gun . | . . . Ballistic Cannon . | . . . Launcher . | . . . Special Weapon . | . . . Impact Weapon . | . . . Slashing Weapon . | . . . Piercing Weapon . | . . . Special Melee Weapon . | . . . Unidentified Prototypes . | . . . Parts Lost 4 | . 3 1 Power 1 | . 1 . Propulsion 1 | . 1 . Utility 1 | . . 1 Weapon 1 | . 1 . Highest Loss Streak 2 | . 2 1 To Critical Strikes . | . . . Average Slot Usage (%) 71 | . 64 88 Engine 13 | . 13 16 Leg 4 | . 6 . Wheel 12 | . 12 11 Hover 6 | . . 21 Flight 2 | . 3 . Device 4 | . 6 . Storage 6 | . 6 5 Processor 3 | . . 10 Protection 3 | . . 10 Energy Gun 2 | . 3 . Ballistic Gun 9 | . 13 . Launcher 3 | . . 10 Naked Turns 32 | . 32 . Heaviest Build 12 | . 9 12 Greatest Support 32 | 3 32 24 Greatest Overweight (x) 1 | . 1 . Average Overweight (x) . | . . . Largest Inventory Capacity 4 | . 4 1 Average Capacity . | . . 1 Most Carried 4 | . 4 1 Average Carried . | . . . Final Capacity 1 | . 1 1 Final Carried 1 | . . 1 Class Distribution -------------------- 37% | Swarmer 21% | Demolisher 14% | Worker 12% | Recycler 11% | Grunt Dominant Class ---------------- Swarmer | -10/Materials Demolisher | -10/Mines Resources | -11 -10 -10 ----------- Run | Scr Mat Min Matter Collected 341 | . 206 135 Remotely . | . . . Salvage Created 564 | . 524 40 Parts 47 | . 43 4 Haulers Intercepted 1 | . 1 . Recyclers Shooed 5 | . 5 . Parts Field Recycled . | . . . Retrieved Matter . | . . . Parts Self-Destructed . | . . . Prevented . | . . . Kills | -11 -10 -10 ------- Run | Scr Mat Min Combat Hostiles Destroyed 15 | . 9 6 Guns 9 | . 9 . AOE 6 | . . 6 Classes Destroyed 8 | . 7 1 Worker 2 | . 1 1 Builder 2 | . 2 . Hauler 1 | . 1 . Recycler 3 | . 3 . Watcher 2 | . 2 . Swarmer 6 | . 5 1 Grunt 4 | . 4 . Assembled 5 | . . 5 Thug 1 | . . 1 Best Kill Streak 6 | . 6 4 Combat Bots Only 3 | . 2 3 Max Kills in Single Turn 2 | . 1 2 Gunslinging . | . . . Exploded 2 | . . 2 Melee . | . . . Uniques/NPCs Destroyed . | . . . Combat | -11 -10 -10 -------- Run | Scr Mat Min Damage Taken 601 | . 424 177 Core 251 | . 206 45 Absorbed by Shields . | . . . Regen/Repaired (Parts) 10 | . 10 . Core Remaining (%) 100 | 100 . . Volleys Fired 178 | . 166 12 Largest 1 | . 1 1 Hottest 40 | . 40 30 Shots Fired 178 | . 166 12 Gun 166 | . 166 . Cannon . | . . . Launcher 12 | . . 12 Special . | . . . Kinetic 122 | . 122 . Thermal 44 | . 44 . Explosive 12 | . . 12 Electromagnetic . | . . . Robot Hit Streak 9 | . 9 6 Robot Miss Streak 4 | . 4 2 Penetration Max . | . . . Secondary Targets . | . . . Shots Hit Robots 91 | . 87 4 Core Hits 48 | . 37 11 Critical Kills . | . . . Critical Parts Destroyed . | . . . Critical Strikes . | . . . Melee Attacks . | . . . Impact . | . . . Slashing . | . . . Piercing . | . . . Sneak Attacks . | . . . Combat Hostiles . | . . . Follow-up Attacks . | . . . Damage Inflicted 1268 | . 773 495 Guns 773 | . 773 . Cannons . | . . . Explosions 495 | . . 495 Melee . | . . . Ramming . | . . . Kinetic 637 | . 637 . Thermal 136 | . 136 . Explosive 495 | . . 495 Electromagnetic . | . . . Impact . | . . . Slashing . | . . . Piercing . | . . . Highest Corruption . | . . . Average Corruption . | . . . Corruption Purged . | . . . Corruption Blocked . | . . . Overload Shots . | . . . Overflow Damage 9 | . . 9 Projectiles . | . . . Explosions 9 | . . 9 Melee . | . . . Knockbacks . | . . . Impact . | . . . Kinetic . | . . . Secondary . | . . . Self-Inflicted Damage 42 | . . 42 Shots 4 | . . 4 Rammed . | . . . Targets Rammed . | . . . Kicked . | . . . Crushed . | . . . Highest Temperature 483 | . 483 2 Average Temperature 69 | . 69 2 Received Heat Transfer 192 | . 192 . Effects 3 | . 3 . Shutdowns 1 | . 1 . Energy Bleed 1 | . 1 . Short Circuit 1 | . 1 . Siege Activations . | . . . Robots Corrupted . | . . . Combat Hostiles . | . . . Parts Fried . | . . . Impact Corruptions . | . . . Robots Melted . | . . . Combat Hostiles . | . . . Parts Melted . | . . . Heat Transferred 300 | . 300 . Parts Sabotaged . | . . . Parts Stolen . | . . . Parts Stripped . | . . . Power Chain Reactions . | . . . Missiles Intercepted . | . . . Alert | -11 -10 -10 ------- Run | Scr Mat Min Peak Influence 297 | . 297 258 Initial 18 | . . 18 Average 145 | . 151 135 Maximum Alert Level 1 | . 1 1 Low Security (%) 66 | 100 70 56 Level 1 33 | . 29 43 Level 2 . | . . . Level 3 . | . . . Level 4 . | . . . Level 5 . | . . . High Security . | . . . Max Security . | . . . Squads Dispatched 1 | . 1 . Investigation 1 | . 1 . Extermination . | . . . Reinforcement . | . . . Assault . | . . . Garrison . | . . . Intercept . | . . . Searches Triggered . | . . . Construction Impeded . | . . . Haulers Reinforced . | . . . Active Scanning Responses . | . . . Cargo Convoy Interrupts . | . . . Stealth | -11 -10 -10 --------- Run | Scr Mat Min Distress Signals . | . . . Communications Jammed . | . . . Distress Signals . | . . . Times Spotted 39 | . 26 13 Peak Tracking Total 6 | . 6 4 Tactical Retreats 3 | . 2 1 Traps | -11 -10 -10 ------- Run | Scr Mat Min Traps Triggered 1 | . 1 . Indirectly . | . . . Trap Hack Attempts . | . . . Triggered . | . . . Disarmed . | . . . Reprogrammed . | . . . Reused . | . . . Traps Extracted . | . . . Installed . | . . . Triggered . | . . . Machines | -11 -10 -10 ---------- Run | Scr Mat Min Machines Disabled 4 | . . 4 Max in Single Turn 2 | . . 2 Machines Sabotaged . | . . . Garrisons Compromised . | . . . Overloaded Fab Kills . | . . . Hacking | -11 -10 -10 --------- Run | Scr Mat Min Machines Accessed 6 | . 5 1 Terminals 4 | . 4 . Fabricators . | . . . Repair Stations 1 | . 1 . Recycling Units . | . . . Scanalyzers . | . . . Garrison Access . | . . . Total Hacks 14 | . 13 1 Successful 10 | . 9 1 Failed 4 | . 4 . Catastrophic 1 | . 1 . Database Lockouts . | . . . Manual 10 | . 10 . Terminals 10 | . 10 . Fabricators . | . . . Repair Stations 3 | . 3 . Recycling Units . | . . . Scanalyzers . | . . . Garrison Access . | . . . Terminal Hacks 3 | . 2 1 Open Door 1 | . . 1 Branch Access Points 1 | . 1 . Reprogram Traps 1 | . 1 . Fabricator Hacks . | . . . Repair Station Hacks 2 | . 2 . Scan Component 1 | . 1 . Repair 1 | . 1 . Recycling Unit Hacks . | . . . Scanalyzer . | . . . Garrison Access Hacks . | . . . Unauthorized Hacks 5 | . 5 . Terminals 5 | . 5 . Botnet 3 | . 3 . Detonate 1 | . 1 . Disrupt 1 | . 1 . Fabricators . | . . . Repair Stations . | . . . Recycling Units . | . . . Scanalyzers . | . . . Garrison Access . | . . . Data Cores Recovered . | . . . Used . | . . . Hacking Detections 4 | . 4 . Full Trace Events 1 | . 1 . Feedback Events . | . . . Feedback Blocked . | . . . Robot Schematics Acquired . | . . . Robots Built . | . . . Authchips . | . . . Time . | . . . Total Robot Build Rating . | . . . Part Schematics Acquired . | . . . Parts Built . | . . . Authchips . | . . . Time . | . . . Total Part Build Rating . | . . . Parts Repaired 1 | . 1 . Time 26 | . 26 . Parts Recycled . | . . . Recycled Matter . | . . . Retrieved Matter . | . . . Retrieved Components . | . . . Parts Scanalyzed . | . . . Part Schematics Acquired . | . . . Parts Damaged . | . . . Bothacking | -11 -10 -10 ------------ Run | Scr Mat Min Used RIF Installer . | . . . Robots Hacked 4 | . 3 1 Non-combat 1 | . 1 . Combat 3 | . 2 1 Robot Hacks Applied 4 | . 3 1 find_recycling 1 | . 1 . find_shortcuts 3 | . 2 1 Relay Couplers Released . | . . . Fabnet Peak Effective % . | . . . Robots Rewired . | . . . Allies Hacked . | . . . Hacks Repelled . | . . . Allies | -11 -10 -10 -------- Run | Scr Mat Min Total Allies . | . . . Largest Group . | . . . Highest-Rated Group . | . . . Highest-Rated Ally . | . . . Total Orders . | . . . Ally Attacks . | . . . Total Damage . | . . . Kills . | . . . Allies Corrupted . | . . . Allies Melted . | . . . Intel | -11 -10 -10 ------- Run | Scr Mat Min Robot Analysis Total 5 | . 4 1 Derelict Logs Recovered 1 | . . 1 Drone Launches . | . . . Drone Recoveries . | . . . Exploration | -11 -10 -10 ------------- Run | Scr Mat Min Turns Passed 1456 | 16 1035 405 Spaces Moved 1415 | 31 951 433 Core 562 | 31 531 . Treads . | . . . Legs 59 | . 59 . Wheels 424 | . 308 116 Hover 317 | . . 317 Flight 53 | . 53 . Fastest Speed 37 | 50 37 76 Average Speed 69 | 50 66 77 Slowest Speed 120 | 50 120 80 Overloaded Moves . | . . . Propulsion Burnouts . | . . . Robots Hopped . | . . . Cave-ins Triggered . | . . . Exploration Rate (%) 59 | 4 97 78 Regions Visited 2 Branch Regions 1 Pre-discovered Areas 1 | . . 1 Known Exits Taken 1 | . 1 . Unknown Exits Taken 1 | 1 . . Scrap Searched 1 | . . 1 Spaces Dug . | . . . Terrain Destroyed 68 | . . 68 Melee . | . . . Projectile . | . . . AOE 68 | . . 68 Terrain Rammed . | . . . Walls Destroyed . | . . . Machines Disabled . | . . . Actions | -11 -10 -10 --------- Run | Scr Mat Min Total 1735 | 30 1211 494 Wait 119 | . 71 48 Move 1413 | 30 950 433 Hop . | . . . Pick Up 11 | . 10 1 Fast Attach . | . . . Attach . | . . . Detach . | . . . Swap . | . . . Drop 1 | . 1 . Fire 178 | . 166 12 Melee . | . . . Ram . | . . . Kick . | . . . Crush . | . . . Escape Stasis . | . . . Rewire . | . . . Trap . | . . . Miscellaneous 13 | . 13 . Route ------- -11/Scrapyard -10/Materials (discovered 4 exits: [*Mat x2] / *Min x2) -10/Mines (discovered 1 exit: [*Mat]) History --------- Turn | Location | Event 7 | -11/Scrapyard | Discovered new exit (range 16) 17 | -11/Scrapyard | Entered Materials 67 | -10/Materials | Repaired Flight Unit 158 | -10/Materials | Core integrity fell below 50% 187 | -10/Materials | Discovered new exit (range 16) 260 | -10/Materials | Discovered new exit (range 14) 272 | -10/Materials | Identified exit to Mines 304 | -10/Materials | Discovered new exit (range 12) 580 | -10/Materials | Core integrity fell below 20% 1052 | -10/Materials | Entered Mines 1081 | -10/Mines | Assembled infested the area 1234 | -10/Mines | Discovered new exit (range 9) 1250 | -10/Mines | Received a Rocket Launcher from a helpful Derelict 1265 | -10/Mines | Met a Derelict who couldn't figure out how to use a Trap Extractor 1316 | -10/Mines | Learned location of Storage (-9) 1422 | -10/Mines | A weapon hastily lodged in a ceiling crevice suddenly fell to the ground 1457 | -10/Mines | Destroyed self with Mini Grenade Launcher Last Messages --------------- 01270_ The unstable cave ceiling collapses. 01270_ K-01 Serf collects debris. 01278_ G8-7QQ(g) destroyed. 01292_ The unstable cave ceiling collapses. 01316_ A derelict emerges from the shadows: "Are any of them following you? I'm here trying to lose some heat after our second raid on Storage failed. Whatever you do stay away from that place, they've tightened security following our previous successful raids." World map updated: -9/Storage. 01318_ EU-7BC(g): "We scattered so the Unaware couldn't effectively use their advantage in numbers, and I suggest you do the same." 01318_ EU-7BC(g) slips back into the shadows. 01339_ Acquired 8 matter. 01382_ Acquired 42 matter. 01383_ U-05 Engineer lays Concrete. 01404_ Pulverizer disabled. 01404_ Core Extractor disabled. 01408_ Acquired 10 matter. 01422_ A Battle Cannon has been hastily shoved under some rubble with a note attached: "To battle!" Map ----- +----------------------------------------------------+ | ?##### # # ### #?? | | ?# # ## #[ ### ## #?? | | ?# ## ! ## ## ## #? #?? | | #### %=! % *%= * ## ##??# #?# ##?? | | % %% = ! # # #???# #??###??? | | #= # # ### ##### ####????? | | # ### ######? # #????? | | ## ###### # % #????? | | ?# #????# # % #????? | | ?# #????# ############# #????? | | ?# #????# ###???????????# % #????? | | ?# #????# #?????????????# #????? | | ## #????# #######???????# #????? | | #????# #???????# "" " #????? | | #######?# #???????# " #????? | | ??## ######### #??###### #????? | | ?## ######## #?## #### # ##????? | | ## #?# ]### ## ##?????? | | # #?# #??????? | | ##########?## ########??????? | | ##???????????### k##??##????????? | | #??????????????## ## ##???????? | | #???????????????## ##??????? | | #????????????????# #??? | | ##????????????????# ######### #??? | | ##?????????????????#d ?????????????? | | ##??????????????????# ?????????????? | | ##??????????????????? ?????????????? | | #????????????????????#s ?????????????? | | ##????????""" ########s#?????????????? | | ###?????????""" #?????????????? | | ??????????# ##########?????????????? | | ????????????????????????????????????????? | | ????????????????????????????????????????? | | ????????????????????????????????????????? | | ????????????????????????????????????????? | | | | | | | | | | | | | | | | | | | | | | | | | | | | | +----------------------------------------------------+ Best States ------------- Heat Dissipation 25 Energy Generation 24 Energy Capacity 200 Matter Stores 150 Matter Capacity 150 Sight Range 16 Terrain Scan Density 10 Armor Coverage 150 Resistance: EX 75 Resistance: I 25 Evasion (%) 62 Launcher Accuracy 20 Item Schematics ----------------- None Robot Schematics ------------------ None Fabricated ------------ Nothing Alien Tech Used ----------------- None Achievements -------------- None Challenges ------------ None Polymind | -11 -10 -10 ---------- Run | Scr Mat Min Hosts 5 | . 4 1 Combat Hostiles 3 | . 2 1 Allies . | . . . Unique Host Classes 5 | . 4 1 Average Host Suspicion 75 | . 75 74 Unsuspicious Activity 226 | . 123 103 Returns to Shadow 1 | . 1 . Fuzzy Dispatches . | . . . Protomatter Created 157 | . 32 125 Used 71 | . 31 40 Decayed 10 | . . 10 Highest Spend 40 | . 15 40 Top 5 Hosts by Kills: S-10 Pest (-10/Materials: 7) D-53 Grenadier (-10/Mines: 6) G-34 Mercenary (-10/Materials: 2) Game ------ Seed SurveybotBladeReactor Manual? 0 Play Time 00:20:53 Cumulative 301.0 hours Start 2023.02.11 @ 20:57:53 End 2023.02.11 @ 21:14:51 Sessions 1 Manual Loads 0 Difficulty Rogue Special Mode Winter2022/Polymind Game No. 347 Rogue 347 Adventurer 0 Explorer 0 Win Type - Total 0 Types 0/0/0/0/0/0/0/0/0 Lore% 45 Gallery% 72 Achievement% 59 Wizard Run 0 Options --------- ASCII 0 Keyboard 0 Movement Mouse Keybinds 0 Fullscreen 2 Font 24/Smallcaps Map View 76x50 Tactical HUD 1 Map Filters NONE Filters NONE Steam 1 RUN: 5a224994-4d1e-4c80-ae81-0797fc5c57e4